lending/lending_fUSD_20240810
["ID","MTS","AMOUNT","RATE_DAILY","PERIOD"]
[334590243,1723287042513,-253.072338,0.00011186,2]
[334590244,1723287042523,-151.0,0.00011186,2]
[334590245,1723287042532,-417.333619,0.00011186,2]
[334590246,1723287042542,-417.333619,0.00011186,2]
[334590247,1723287042551,-151.0,0.00011186,2]
[334590248,1723287042560,-1045.355205,0.00011186,2]
[334590249,1723287042570,-1045.355205,0.00011186,2]
[334590250,1723287042580,-151.0,0.00011186,2]
[334590251,1723287042589,-180.325739,0.00011186,2]
[334590252,1723287042598,-180.325739,0.00011186,2]
[334590253,1723287042608,-151.0,0.00011186,2]
[334590254,1723287042617,-151.0,0.00011186,2]
[334590255,1723287042735,-151.0,0.00011186,2]
[334590256,1723287042764,-398.309818,0.00011186,2]
[334590257,1723287042774,-398.309818,0.00011186,2]
[334590258,1723287042784,-151.0,0.00011186,2]
[334590259,1723287042794,-151.0,0.00011186,2]
[334590260,1723287042803,-151.0,0.00011186,2]
[334590261,1723287042813,-151.0,0.00011186,2]
[334590262,1723287042823,-159.87612,0.00011186,2]
[334590263,1723287042832,-159.87612,0.00011186,2]
[334590264,1723287042841,-569.455933,0.00011186,2]
[334590265,1723287042851,-569.455933,0.00011186,2]
[334590266,1723287042860,-151.0,0.00011186,2]
[334590267,1723287042870,-151.0,0.00011186,2]
[334590268,1723287042880,-539.846076,0.00011186,2]
[334590269,1723287042889,-151.0,0.00011186,2]
[334590270,1723287042899,-539.846076,0.00011186,2]
[334590271,1723287042908,-151.0,0.00011186,2]
[334590272,1723287042916,-151.0,0.00011186,2]
[334590273,1723287042926,-152.644202,0.00011186,2]
[334590274,1723287042936,-829.665441,0.00011186,2]
[334590275,1723287042946,-151.0,0.00011186,2]
[334590276,1723287042956,-151.0,0.00011186,2]
[334590277,1723287042966,-553.127259,0.00011186,2]
[334590278,1723287042976,-151.0,0.00011186,2]
[334590279,1723287042986,-553.127259,0.00011186,2]
[334590280,1723287042995,-151.0,0.00011186,2]
[334590281,1723287043004,-151.0,0.00011186,2]
[334590282,1723287043013,-1066.31323,0.00011186,2]
[334590283,1723287043022,-1066.31323,0.00011186,2]
[334590284,1723287043032,-151.0,0.00011186,2]
[334590285,1723287043041,-151.0,0.00011186,2]
[334590286,1723287043051,-151.0,0.00011186,2]
[334590287,1723287043062,-208.620823,0.00011186,2]
[334590288,1723287043072,-151.0,0.00011186,2]
[334590289,1723287043082,-1238.80122,0.00011186,2]
[334590290,1723287043091,-151.0,0.00011186,2]
[334590291,1723287043101,-1238.80122,0.00011186,2]
[334590292,1723287043111,-235.445978,0.00011186,2]
[334590293,1723287043121,-235.445978,0.00011186,2]
[334590294,1723287043131,-170.932081,0.00011186,2]
[334590295,1723287043141,-170.932081,0.00011186,2]
[334590296,1723287043150,-151.0,0.00011186,2]
[334590297,1723287043161,-151.0,0.00011186,2]
[334590298,1723287043171,-342.99674,0.00011186,2]
[334590299,1723287043180,-151.0,0.00011186,2]
[334590300,1723287043190,-342.99674,0.00011186,2]
[334590301,1723287043200,-151.0,0.00011186,2]
[334590302,1723287043209,-151.454278,0.00011186,2]
[334590303,1723287043219,-151.0,0.00011186,2]
[334590304,1723287043228,-151.0,0.00011186,2]
[334590305,1723287043238,-458.13805,0.00011186,2]
[334590307,1723287043247,-1160.590552,0.00011186,2]
[334590308,1723287043257,-458.13805,0.00011186,2]
[334590309,1723287043266,-1160.590552,0.00011186,2]
[334590310,1723287043275,-5260.001754,0.00011186,2]
[334590311,1723287043285,-1847.06888472,0.00011206,2]
[334590312,1723287043294,-150.0,0.00011258,2]
[334590313,1723287043304,-1583.0,0.00011282,2]
[334590314,1723287043313,-1257.0,0.00011282,2]
[334590315,1723287043323,-622.0,0.00011282,2]
[334590316,1723287043333,-1924.0,0.00011282,2]
[334590317,1723287043343,-1136.0,0.00011282,2]
[334590318,1723287043354,-380.398,0.00011282,2]
[334590319,1723287043363,-224.467,0.00011282,2]
[334590320,1723287043375,-1894.0,0.00011282,2]
[334590321,1723287043384,-150.302,0.00011282,2]
[334590322,1723287043394,-551.0,0.00011282,2]
[334590323,1723287043408,-150.0,0.00011282,2]
[334590324,1723287043418,-1136.0,0.00011282,2]
[334590325,1723287043428,-3290.0,0.00011282,2]
[334590326,1723287043437,-150.0,0.00011282,2]
[334590327,1723287043449,-289.0,0.00011282,2]
[334590328,1723287043459,-150.0,0.00011282,2]
[334590329,1723287043469,-5132.0,0.00011282,2]
[334590331,1723287043480,-150.0,0.00011282,2]
[334590333,1723287043490,-1515.75,0.00011282,2]
[334590334,1723287043500,-150.0,0.00011282,2]
[334590336,1723287043510,-21751.0,0.00011282,2]
[334590338,1723287043520,-242.84,0.00011282,2]
[334590339,1723287043529,-5243.679,0.00011282,2]
[334590340,1723287043539,-150.123,0.00011282,2]
[334590341,1723287043548,-1076.0,0.00011282,2]
[334590342,1723287043558,-150.0,0.00011283,2]
[334590343,1723287043567,-151.0,0.00011284,2]
[334590344,1723287043577,-151.0,0.00011284,2]
[334590345,1723287043586,-228.365843,0.00011284,2]
[334590346,1723287043596,-151.0,0.00011284,2]
[334590347,1723287043606,-151.0,0.00011284,2]
[334590348,1723287043616,-228.365843,0.00011284,2]
[334590349,1723287043625,-151.0,0.00011284,2]
[334590350,1723287043635,-349.612158,0.00011284,2]
[334590351,1723287043644,-151.0,0.00011284,2]
[334590352,1723287043654,-349.612158,0.00011284,2]
[334590353,1723287043663,-200.526732,0.00011284,2]
[334590354,1723287043673,-200.526732,0.00011284,2]
[334590355,1723287043682,-922.277054,0.00011284,2]
[334590356,1723287043692,-922.277054,0.00011284,2]
[334590357,1723287043701,-151.0,0.00011284,2]
[334590358,1723287043710,-417.333619,0.00011284,2]
[334590359,1723287043720,-417.333619,0.00011284,2]
[334590360,1723287043729,-151.0,0.00011284,2]
[334590361,1723287043739,-1045.355205,0.00011284,2]
[334590362,1723287043748,-1045.355205,0.00011284,2]
[334590363,1723287043759,-151.0,0.00011284,2]
[334590364,1723287043769,-180.325739,0.00011284,2]
[334590365,1723287043779,-180.325739,0.00011284,2]
[334590366,1723287043788,-151.0,0.00011284,2]
[334590367,1723287043797,-151.0,0.00011284,2]
[334590368,1723287043806,-151.0,0.00011284,2]
[334590369,1723287043816,-398.309818,0.00011284,2]
[334590370,1723287043825,-398.309818,0.00011284,2]
[334590371,1723287043835,-151.0,0.00011284,2]
[334590372,1723287043844,-151.0,0.00011284,2]
[334590373,1723287043855,-167.59519,0.00011284,2]
[334590374,1723287043865,-151.584461,0.00011284,2]
[334590375,1723287043875,-159.87612,0.00011284,2]
[334590376,1723287043885,-159.87612,0.00011284,2]
[334590377,1723287043895,-569.455933,0.00011284,2]
[334590378,1723287043905,-569.455933,0.00011284,2]
[334590380,1723287043914,-151.0,0.00011284,2]
[334590382,1723287043924,-151.0,0.00011284,2]
[334590383,1723287043934,-539.846076,0.00011284,2]
[334590384,1723287043943,-151.0,0.00011284,2]
[334590385,1723287043953,-539.846076,0.00011284,2]
[334590386,1723287043963,-151.0,0.00011284,2]
[334590387,1723287043973,-151.0,0.00011284,2]
[334590388,1723287043984,-829.665441,0.00011284,2]
[334590389,1723287043994,-151.0,0.00011284,2]
[334590390,1723287044006,-151.0,0.00011284,2]
[334590391,1723287044016,-553.127259,0.00011284,2]
[334590392,1723287044026,-151.0,0.00011284,2]
[334590393,1723287044035,-553.127259,0.00011284,2]
[334590394,1723287044045,-151.0,0.00011284,2]
[334590395,1723287044054,-151.0,0.00011284,2]
[334590396,1723287044064,-1066.31323,0.00011284,2]
[334590397,1723287044073,-1066.31323,0.00011284,2]
[334590398,1723287044083,-151.0,0.00011284,2]
[334590399,1723287044093,-151.0,0.00011284,2]
[334590400,1723287044102,-159.677875,0.00011284,2]
[334590401,1723287044112,-1238.80122,0.00011284,2]
[334590402,1723287044121,-151.0,0.00011284,2]
[334590403,1723287044131,-151.0,0.00011284,2]
[334590404,1723287044140,-1238.80122,0.00011284,2]
[334590405,1723287044149,-235.445978,0.00011284,2]
[334590406,1723287044159,-235.445978,0.00011284,2]
[334590407,1723287044168,-170.932081,0.00011284,2]
[334590408,1723287044177,-170.932081,0.00011284,2]
[334590409,1723287044187,-151.0,0.00011284,2]
[334590410,1723287044197,-151.0,0.00011284,2]
[334590411,1723287044206,-342.99674,0.00011284,2]
[334590412,1723287044216,-151.0,0.00011284,2]
[334590413,1723287044226,-342.99674,0.00011284,2]
[334590414,1723287044235,-151.0,0.00011284,2]
[334590415,1723287044245,-151.0,0.00011284,2]
[334590416,1723287044254,-151.0,0.00011284,2]
[334590417,1723287044264,-458.13805,0.00011284,2]
[334590418,1723287044273,-1160.590552,0.00011284,2]
[334590419,1723287044282,-458.13805,0.00011284,2]
[334590420,1723287044292,-1160.590552,0.00011284,2]
[334590421,1723287044301,-5260.001754,0.00011284,2]
[334590422,1723287044310,-420.2791488,0.0001129,2]
[334590423,1723287044319,-278.823919,0.00011321,2]
[334590424,1723287044329,-198.944865,0.00011321,2]
[334590425,1723287044339,-198.944865,0.00011321,2]
[334590426,1723287044348,-342.480342,0.00011321,2]
[334590427,1723287044357,-342.480342,0.00011321,2]
[334590428,1723287044366,-157.537129,0.00011321,2]
[334590429,1723287044376,-157.537129,0.00011321,2]
[334590430,1723287044385,-151.0,0.00011321,2]
[334590431,1723287044395,-151.0,0.00011321,2]
[334590432,1723287044409,-194.9143334,0.00011322,2]
[334590433,1723287044418,-539.840086,0.00011324,2]
[334590434,1723287044427,-151.0,0.00011324,2]
[334590435,1723287044436,-151.0,0.00011324,2]
[334590436,1723287044447,-151.0,0.00011324,2]
[334590437,1723287044456,-151.0,0.00011324,2]
[334590438,1723287044466,-158.732719,0.00011324,2]
[334590439,1723287044476,-174.069152,0.00011324,2]
[334590440,1723287044486,-201.256533,0.00011324,2]
[334590441,1723287044495,-158.732719,0.00011324,2]
[334590442,1723287044504,-1323.982044,0.00011324,2]
[334590443,1723287044514,-174.069152,0.00011324,2]
[334590444,1723287044523,-201.256533,0.00011324,2]
[334590445,1723287044532,-1323.982044,0.00011324,2]
[334590446,1723287044542,-151.0,0.00011324,2]
[334590447,1723287044552,-151.0,0.00011324,2]
[334590448,1723287044561,-151.0,0.00011324,2]
[334590449,1723287044571,-151.0,0.00011324,2]
[334590450,1723287044581,-151.0,0.00011324,2]
[334590451,1723287044590,-221.31341994,0.00011324,2]
[334590452,1723287044600,-16902.06240077,0.00011436,2]
[334590453,1723287044610,-500.0,0.00011508,2]
[334590454,1723287044619,-500.0,0.00011508,2]
[334590455,1723287044628,-500.0,0.00011508,2]
[334590456,1723287044638,-151.0,0.00011525,2]
[334590457,1723287044647,-288.275881,0.00011525,2]
[334590458,1723287044656,-210.344867,0.00011525,2]
[334590459,1723287044666,-210.344867,0.00011525,2]
[334590460,1723287044676,-151.0,0.00011525,2]
[334590461,1723287044686,-151.0,0.00011525,2]
[334590462,1723287044695,-151.0,0.00011525,2]
[334590463,1723287044705,-151.0,0.00011525,2]
[334590464,1723287044714,-151.0,0.00011525,2]
[334590465,1723287044724,-793.0,0.00011652,2]
[334590466,1723287044733,-3400.0,0.000117,4]
[334590467,1723287044743,-4500.0,0.000118,4]
[334590468,1723287044753,-155.0,0.0001185,2]
[334590469,1723287044769,-172.82,0.00011885,2]
[334590470,1723287044778,-151.0,0.00011894,2]
[334590471,1723287044788,-151.0,0.00011894,2]
[334590472,1723287044798,-453.247836,0.00011894,2]
[334590473,1723287044807,-329.551266,0.00011894,2]
[334590474,1723287044817,-329.551266,0.00011894,2]
[334590475,1723287044826,-5600.0,0.000119,4]
[334590476,1723287044835,-151.0,0.00011959,2]
[334590477,1723287044845,-151.0,0.00011959,2]
[334590478,1723287044854,-151.0,0.00011959,2]
[334590479,1723287044867,-151.0,0.00011959,2]
[334590480,1723287044876,-275.344649,0.00011959,2]
[334590481,1723287044886,-151.0,0.00011959,2]
[334590482,1723287044896,-200.0,0.00011973,2]
[334590483,1723287044905,-200.0,0.00011973,2]
[334590484,1723287044917,-500.0,0.00011992,2]
[334590485,1723287044928,-500.0,0.00011992,2]
[334590486,1723287044939,-14095.89649962,0.00012,2]
[334590487,1723287044948,-5000.0,0.00012,2]
[334590488,1723287044957,-250000.0,0.00012,2]
[334590489,1723287044967,-151.0,0.00012,2]
[334590490,1723287044978,-151.0,0.00012,2]
[334590491,1723287044988,-151.0,0.00012,2]
[334590492,1723287044998,-151.0,0.00012,2]
[334590493,1723287045008,-151.0,0.00012,2]
[334590494,1723287045017,-152.911068,0.00012,2]
[334590495,1723287045027,-152.911068,0.00012,2]
[334590496,1723287045037,-151.0,0.00012,2]
[334590497,1723287045046,-151.0,0.00012,2]
[334590498,1723287045055,-151.0,0.00012,2]
[334590499,1723287045064,-151.0,0.00012,2]
[334590500,1723287045074,-151.0,0.00012,2]
[334590501,1723287045085,-209.1081,0.00012,2]
[334590502,1723287045199,-151.0,0.00012,2]
[334590503,1723287045209,-152.911068,0.00012,2]
[334590504,1723287045218,-152.911068,0.00012,2]
[334590505,1723287045228,-151.0,0.00012,2]
[334590506,1723287045237,-151.0,0.00012,2]
[334590507,1723287045245,-151.0,0.00012,2]
[334590508,1723287045254,-151.0,0.00012,2]
[334590509,1723287045264,-151.0,0.00012,2]
[334590510,1723287045273,-151.0,0.00012,2]
[334590511,1723287045283,-151.0,0.00012,2]
[334590512,1723287045294,-151.0,0.00012,2]
[334590513,1723287045304,-151.0,0.00012,2]
[334590514,1723287045314,-151.0,0.00012,2]
[334590515,1723287045324,-151.0,0.00012,2]
[334590516,1723287045334,-151.0,0.00012,2]
[334590517,1723287045346,-151.0,0.00012,2]
[334590518,1723287045357,-151.0,0.00012,2]
[334590519,1723287045367,-354.269672,0.00012,2]
[334590520,1723287045377,-354.269672,0.00012,2]
[334590521,1723287045387,-354.269672,0.00012,2]
[334590522,1723287045400,-354.269672,0.00012,2]
[334590523,1723287045410,-151.0,0.00012,2]
[334590524,1723287045419,-151.0,0.00012,2]
[334590525,1723287045429,-151.0,0.00012,2]
[334590526,1723287045440,-151.0,0.00012,2]
[334590527,1723287045450,-151.0,0.00012,2]
[334590528,1723287045459,-453.247836,0.00012,2]
[334590529,1723287045468,-151.0,0.00012,2]
[334590530,1723287045480,-151.0,0.00012,2]
[334590531,1723287045489,-453.247836,0.00012,2]
[334590532,1723287045498,-151.0,0.00012,2]
[334590533,1723287045510,-329.551266,0.00012,2]
[334590534,1723287045519,-151.0,0.00012,2]
[334590535,1723287045528,-329.551266,0.00012,2]
[334590536,1723287045537,-151.0,0.00012,2]
[334590537,1723287045547,-210.344867,0.00012,2]
[334590538,1723287045556,-210.344867,0.00012,2]
[334590539,1723287045566,-151.0,0.00012,2]
[334590540,1723287045575,-151.0,0.00012,2]
[334590541,1723287045584,-151.0,0.00012,2]
[334590542,1723287045594,-151.0,0.00012,2]
[334590543,1723287045603,-151.0,0.00012,2]
[334590544,1723287045612,-539.840086,0.00012,2]
[334590545,1723287045622,-151.0,0.00012,2]
[334590546,1723287045631,-151.0,0.00012,2]
[334590547,1723287045639,-151.0,0.00012,2]
[334590548,1723287045649,-151.0,0.00012,2]
[334590549,1723287045658,-158.732719,0.00012,2]
[334590550,1723287045667,-174.069152,0.00012,2]
[334590551,1723287045676,-201.256533,0.00012,2]
[334590552,1723287045685,-1323.982044,0.00012,2]
[334590553,1723287045694,-158.732719,0.00012,2]
[334590554,1723287045703,-174.069152,0.00012,2]
[334590555,1723287045712,-201.256533,0.00012,2]
[334590556,1723287045721,-1323.982044,0.00012,2]
[334590557,1723287045730,-151.0,0.00012,2]
[334590558,1723287045739,-151.0,0.00012,2]
[334590559,1723287045748,-151.0,0.00012,2]
[334590560,1723287045758,-151.0,0.00012,2]
[334590561,1723287045767,-151.0,0.00012,2]
[334590562,1723287045777,-198.944865,0.00012,2]
[334590563,1723287045786,-198.944865,0.00012,2]
[334590564,1723287045795,-342.480342,0.00012,2]
[334590565,1723287045804,-342.480342,0.00012,2]
[334590566,1723287045813,-157.537129,0.00012,2]
[334590567,1723287045822,-157.537129,0.00012,2]
[334590568,1723287045832,-151.0,0.00012,2]
[334590569,1723287045845,-151.0,0.00012,2]
[334590570,1723287045855,-151.0,0.00012,2]
[334590571,1723287045864,-151.0,0.00012,2]
[334590572,1723287045874,-600.0,0.00012,2]
[334590573,1723287045885,-151.0,0.00012,2]
[334590574,1723287045897,-151.0,0.00012,2]
[334590575,1723287045911,-228.365843,0.00012,2]
[334590576,1723287045921,-228.365843,0.00012,2]
[334590577,1723287045931,-151.0,0.00012,2]
[334590578,1723287045943,-151.0,0.00012,2]
[334590579,1723287045954,-151.0,0.00012,2]
[334590580,1723287045964,-151.0,0.00012,2]
[334590581,1723287045975,-228.365843,0.00012,2]
[334590582,1723287045983,-228.365843,0.00012,2]
[334590583,1723287045994,-151.0,0.00012,2]
[334590584,1723287046005,-151.0,0.00012,2]
[334590585,1723287046014,-349.612158,0.00012,2]
[334590586,1723287046023,-349.612158,0.00012,2]
[334590587,1723287046033,-151.0,0.00012,2]
[334590588,1723287046042,-151.0,0.00012,2]
[334590589,1723287046051,-349.612158,0.00012,2]
[334590590,1723287046059,-349.612158,0.00012,2]
[334590591,1723287046068,-200.526732,0.00012,2]
[334590592,1723287046078,-200.526732,0.00012,2]
[334590593,1723287046087,-200.526732,0.00012,2]
[334590594,1723287046096,-200.526732,0.00012,2]
[334590595,1723287046105,-922.277054,0.00012,2]
[334590596,1723287046114,-922.277054,0.00012,2]
[334590597,1723287046123,-922.277054,0.00012,2]
[334590598,1723287046132,-922.277054,0.00012,2]
[334590599,1723287046141,-151.0,0.00012,2]
[334590600,1723287046150,-151.0,0.00012,2]
[334590601,1723287046160,-417.333619,0.00012,2]
[334590602,1723287046170,-417.333619,0.00012,2]
[334590603,1723287046180,-417.333619,0.00012,2]
[334590604,1723287046191,-417.333619,0.00012,2]
[334590605,1723287046202,-151.0,0.00012,2]
[334590606,1723287046213,-212.841025,0.00012,2]
[334590607,1723287046224,-1045.355205,0.00012,2]
[334590608,1723287046234,-1045.355205,0.00012,2]
[334590609,1723287046243,-1045.355205,0.00012,2]
[334590610,1723287046256,-1045.355205,0.00012,2]
[334590611,1723287046265,-151.0,0.00012,2]
[334590612,1723287046275,-151.0,0.00012,2]
[334590613,1723287046284,-180.325739,0.00012,2]
[334590614,1723287046293,-180.325739,0.00012,2]
[334590615,1723287046302,-180.325739,0.00012,2]
[334590616,1723287046311,-180.325739,0.00012,2]
[334590617,1723287046320,-151.0,0.00012,2]
[334590618,1723287046330,-151.0,0.00012,2]
[334590619,1723287046340,-151.0,0.00012,2]
[334590620,1723287046351,-151.0,0.00012,2]
[334590621,1723287046363,-151.0,0.00012,2]
[334590622,1723287046375,-151.0,0.00012,2]
[334590623,1723287046386,-398.309818,0.00012,2]
[334590624,1723287046397,-398.309818,0.00012,2]
[334590625,1723287046410,-398.309818,0.00012,2]
[334590626,1723287046421,-151.791785,0.00012,2]
[334590627,1723287046431,-398.309818,0.00012,2]
[334590628,1723287046441,-151.0,0.00012,2]
[334590629,1723287046451,-151.0,0.00012,2]
[334590630,1723287046460,-159.87612,0.00012,2]
[334590631,1723287046469,-159.87612,0.00012,2]
[334590632,1723287046482,-159.87612,0.00012,2]
[334590633,1723287046493,-159.87612,0.00012,2]
[334590634,1723287046503,-569.455933,0.00012,2]
[334590635,1723287046517,-569.455933,0.00012,2]
[334590636,1723287046527,-569.455933,0.00012,2]
[334590637,1723287046536,-569.455933,0.00012,2]
[334590638,1723287046546,-151.0,0.00012,2]
[334590639,1723287046555,-151.0,0.00012,2]
[334590640,1723287046564,-151.0,0.00012,2]
[334590641,1723287046574,-232.576332,0.00012,2]
[334590642,1723287046583,-539.846076,0.00012,2]
[334590643,1723287046592,-539.846076,0.00012,2]
[334590644,1723287046601,-151.0,0.00012,2]
[334590645,1723287046610,-151.0,0.00012,2]
[334590646,1723287046619,-539.846076,0.00012,2]
[334590647,1723287046628,-539.846076,0.00012,2]
[334590648,1723287046638,-151.0,0.00012,2]
[334590649,1723287046647,-151.0,0.00012,2]
[334590650,1723287046656,-151.0,0.00012,2]
[334590651,1723287046666,-151.0,0.00012,2]
[334590652,1723287046675,-829.665441,0.00012,2]
[334590653,1723287046685,-829.665441,0.00012,2]
[334590654,1723287046695,-151.0,0.00012,2]
[334590655,1723287046704,-151.0,0.00012,2]
[334590656,1723287046713,-151.0,0.00012,2]
[334590657,1723287046722,-151.0,0.00012,2]
[334590658,1723287046732,-553.127259,0.00012,2]
[334590659,1723287046743,-553.127259,0.00012,2]
[334590660,1723287046752,-220.799799,0.00012,2]
[334590661,1723287046763,-151.0,0.00012,2]
[334590662,1723287046772,-553.127259,0.00012,2]
[334590663,1723287046781,-151.0,0.00012,2]
[334590664,1723287046790,-553.127259,0.00012,2]
[334590665,1723287046800,-151.0,0.00012,2]
[334590666,1723287046809,-151.0,0.00012,2]
[334590667,1723287046819,-1066.31323,0.00012,2]
[334590668,1723287046828,-1066.31323,0.00012,2]
[334590669,1723287046837,-1066.31323,0.00012,2]
[334590670,1723287046846,-1066.31323,0.00012,2]
[334590671,1723287046855,-238.195416,0.00012,2]
[334590672,1723287046865,-301.755469,0.00012,2]
[334590673,1723287046874,-1238.80122,0.00012,2]
[334590674,1723287046883,-151.0,0.00012,2]
[334590675,1723287046893,-1238.80122,0.00012,2]
[334590676,1723287046905,-151.0,0.00012,2]
[334590677,1723287046914,-151.0,0.00012,2]
[334590678,1723287046924,-1238.80122,0.00012,2]
[334590679,1723287046934,-1238.80122,0.00012,2]
[334590680,1723287046943,-235.445978,0.00012,2]
[334590681,1723287046952,-235.445978,0.00012,2]
[334590682,1723287046961,-235.445978,0.00012,2]
[334590683,1723287046970,-235.445978,0.00012,2]
[334590684,1723287046980,-170.932081,0.00012,2]
[334590685,1723287046989,-170.932081,0.00012,2]
[334590686,1723287046999,-170.932081,0.00012,2]
[334590687,1723287047008,-170.932081,0.00012,2]
[334590688,1723287047018,-151.0,0.00012,2]
[334590689,1723287047027,-151.0,0.00012,2]
[334590690,1723287047037,-151.0,0.00012,2]
[334590691,1723287047046,-175.419998,0.00012,2]
[334590692,1723287047057,-342.99674,0.00012,2]
[334590693,1723287047067,-342.99674,0.00012,2]
[334590694,1723287047077,-151.0,0.00012,2]
[334590695,1723287047087,-151.0,0.00012,2]
[334590696,1723287047099,-342.99674,0.00012,2]
[334590697,1723287047110,-342.99674,0.00012,2]
[334590698,1723287047120,-151.0,0.00012,2]
[334590699,1723287047130,-151.0,0.00012,2]
[334590700,1723287047139,-151.0,0.00012,2]
[334590701,1723287047148,-151.0,0.00012,2]
[334590702,1723287047157,-151.0,0.00012,2]
[334590703,1723287047166,-151.0,0.00012,2]
[334590704,1723287047175,-458.13805,0.00012,2]
[334590705,1723287047184,-458.13805,0.00012,2]
[334590706,1723287047193,-1160.590552,0.00012,2]
[334590707,1723287047202,-1160.590552,0.00012,2]
[334590708,1723287047211,-458.13805,0.00012,2]
[334590709,1723287047220,-458.13805,0.00012,2]
[334590710,1723287047229,-1160.590552,0.00012,2]
[334590711,1723287047238,-1160.590552,0.00012,2]
[334590712,1723287047247,-5260.001754,0.00012,2]
[334590713,1723287047257,-5260.001754,0.00012,2]
[334590714,1723287047266,-607.08,0.00012,2]
[334590715,1723287047275,-167.76,0.00012033,2]
[334590716,1723287047284,-989.7201883,0.00012147,2]
[334590717,1723287047293,-793.0,0.00012235,2]
[334590718,1723287047303,-150.0,0.00012235,2]
[334590719,1723287047312,-1500.0,0.00012236,2]
[334590720,1723287047321,-150.0,0.00012237,2]
[334590721,1723287047331,-150.0,0.0001224,2]
[334590722,1723287047340,-150.0,0.0001224,2]
[334590723,1723287047454,-150.0,0.00012242,2]
[334590724,1723287047464,-150.0,0.00012243,2]
[334590725,1723287047475,-150.0,0.00012244,2]
[334590726,1723287047484,-1500.0,0.00012247,2]
[334590727,1723287047494,-151.0,0.00012247,2]
[334590728,1723287047503,-151.0,0.00012247,2]
[334590729,1723287047514,-151.0,0.00012247,2]
[334590730,1723287047523,-151.0,0.00012247,2]
[334590731,1723287047533,-1160.590552,0.00012247,2]
[334590732,1723287047542,-1160.590552,0.00012247,2]
[334590733,1723287047552,-5260.001754,0.00012247,2]
[334590734,1723287047561,-150.0,0.00012248,2]
[334590735,1723287047571,-150.0,0.00012249,2]
[334590736,1723287047581,-150.0,0.00012251,2]
[334590737,1723287047590,-1500.0,0.00012252,2]
[334590738,1723287047600,-150.0,0.00012255,2]
[334590739,1723287047609,-226.2741535,0.00012256,2]
[334590740,1723287047619,-150.0,0.00012256,2]
[334590741,1723287047628,-150.0,0.00012259,2]
[334590742,1723287047638,-1000.0,0.00012261,2]
[334590743,1723287047647,-150.0,0.00012262,2]
[334590744,1723287047656,-150.0,0.00012262,2]
[334590745,1723287047665,-150.0,0.00012264,2]
[334590746,1723287047675,-150.0,0.00012264,2]
[334590747,1723287047684,-1500.0,0.00012266,2]
[334590748,1723287047693,-150.0,0.00012266,2]
[334590749,1723287047703,-150.0,0.00012269,2]